[Event "SixDays Budapest GM-B 10-2024"]
[Site "Budapest"]
[Date "2024.10.01"]
[Round "3.1"]
[White "Kovalev, Andrei"]
[Black "Wagh Suyog"]
[Result "1/2-1/2"]
[Annotator "RC"]
[ECO "B18"]
[WhiteElo "2412"]
[BlackElo "2341"]
[PlyCount "111"]
[EventDate "2024.09.24"]
[EventType "tourn"]
[EventCountry "HUN"]
[SourceTitle "playchess.com"]
[Source "ChessBase"]
[SourceQuality "1"]
[TimeControl "5400+30"]

1. e4 c6 {[%emt 0:00:13]} 2. d4 {[%emt 0:04:27]} d5 {[%emt 0:00:02]} 3. Nd2 {[%emt 0:01:51]} dxe4 {[%emt 0:00:05]} 4. Nxe4 {[%emt 0:00:03]} Bf5 {[%emt 0:00:04]} 5. Ng3 {[%emt 0:00:25]} Bg6 {[%emt 0:00:15]} 6. h4 {[%emt 0:00:25]} h6 {[%emt 0:00:20]} 7. Nf3 {[%emt 0:00:15]} e6 {[%emt 0:00:10]} 8. h5 {[%emt 0:00:06]} Bh7 {[%emt 0:00:03]} 9. Bd3 {[%emt 0:00:04]} Bxd3 {[%emt 0:00:17]} 10. Qxd3 {[%emt 0:00:05]} Nf6 {[%emt 0:00:16]} 11. Bf4 {[%emt 0:04:46]} Qa5+ {[%emt 0:02:43]} 12. Bd2 {[%emt 0:07:01]} Bb4 {[%emt 0:00:07]} 13. c3 {[%emt 0:00:27]} Bd6 {[%emt 0:14:10]} 14. c4 {[%emt 0:05:09]} Bb4 {[%emt 0:26:40]} 15. a3 {[%emt 0:01:36]} Bxd2+ {[%emt 0:00:29]} 16. Qxd2 {[%emt 0:00:05]} Qxd2+ {[%emt 0:14:49]} 17. Kxd2 {[%emt 0:01:02]} Nbd7 {[%emt 0:04:12]} 18. Kc3 {[%emt 0:01:31]} a5 {[%emt 0:06:39]} 19. Rhe1 {[%emt 0:19:21]} O-O {[%emt 0:05:06]} 20. Ne5 {[%emt 0:02:51]} Rfd8 {[%emt 0:02:00]} 21. Rad1 {[%emt 0:01:49]} Kf8 {[%emt 0:00:11]} 22. f3 {[%emt 0:04:58]} Rac8 {[%emt 0:01:03]} 23. Ne4 {[%emt 0:17:45]} Nxe5 {[%emt 0:12:49]} 24. dxe5 {[%emt 0:00:24]} Nxe4+ {[%emt 0:00:33]} 25. fxe4 {[%emt 0:00:09]} Ke7 {[%emt 0:00:07]} 26. b4 {[%emt 0:09:49]} a4 {[%emt 0:07:23]} 27. c5 {[%emt 0:01:57]} f6 {[%emt 0:00:08]} 28. Rxd8 {[%emt 0:06:16]} Rxd8 {[%emt 0:00:07]} 29. Re3 {[%emt 0:02:49]} fxe5 {[%emt 0:02:49]} 30. Rg3 {[%emt 0:00:06]} Kf6 {[%emt 0:00:49]} 31. Rf3+ {[%emt 0:00:27]} Ke7 {[%emt 0:00:22]} 32. Rg3 {[%emt 0:00:11]} Kf6 {[%emt 0:00:28]} 33. Rf3+ {[%emt 0:00:56]} Ke7 {[%emt 0:00:52]} 34. Rg3 {[%emt 0:04:09]} Kf7 {[%emt 0:00:05]} 35. Rf3+ {[%emt 0:00:05]} Kg8 {[%emt 0:00:26]} 36. b5 {[%emt 0:00:06]} Rd4 {[%emt 0:00:51]} 37. bxc6 {[%emt 0:01:12]} bxc6 {[%emt 0:00:03]} 38. Rd3 {[%emt 0:00:08]} Rxd3+ {[%emt 0:01:04]} 39. Kxd3 {[%emt 0:00:01]} Kf7 {[%emt 0:00:00]} 40. Kc4 {[%emt 0:00:08]} Kf6 {[%emt 0:00:00]} 41. Kb4 {[%emt 0:00:05]} Kg5 {[%emt 0:00:04]} 42. Ka5 {[%emt 0:01:44]} Kf4 {[%emt 0:00:20]} 43. Kb6 {[%emt 0:00:05]} Kxe4 {[%emt 0:00:23]} 44. Kxc6 {[%emt 0:00:05]} Kf5 {[%emt 0:01:50]} 45. Kd6 {[%emt 0:02:40]} e4 {[%emt 0:00:07]} 46. c6 {[%emt 0:00:08]} e3 {[%emt 0:00:05]} 47. c7 {[%emt 0:00:03]} e2 {[%emt 0:00:02]} 48. c8=Q {[%emt 0:00:05]} e1=Q {[%emt 0:00:02]} 49. Qf8+ {[%emt 0:00:34]} Kg5 {[%emt 0:01:22]} 50. Qxg7+ {[%emt 0:00:44]} Kxh5 {[%emt 0:00:08]} 51. g4+ {[%emt 0:01:02]} Kh4 {[%emt 0:00:08]} 52. Qxh6+ {[%emt 0:00:04]} Kxg4 {[%emt 0:00:20]} 53. Qxe6+ {[%emt 0:00:06]} Qxe6+ {[%emt 0:00:03]} 54. Kxe6 {[%emt 0:00:05]} Kf4 {[%emt 0:00:13]} 55. Kd5 {[%emt 0:00:04]} Kf5 {[%emt 0:00:01]} 56. Kc5 {[%emt 0:00:08]} 1/2-1/2

[Event "SixDays Budapest GM-B 10-2024"]
[Site "Budapest"]
[Date "2024.10.01"]
[Round "3.2"]
[White "Xie, Felix"]
[Black "Galyas, Miklos"]
[Result "0-1"]
[Annotator "TA"]
[ECO "B12"]
[WhiteElo "2320"]
[BlackElo "2394"]
[PlyCount "118"]
[EventDate "2024.09.24"]
[EventType "tourn"]
[EventCountry "HUN"]
[SourceTitle "playchess.com"]
[Source "ChessBase"]
[SourceQuality "1"]
[TimeControl "5400+30"]

{[%evp 9,118,33,28,24,46,12,108,-61,-15,-49,-45,-20,-27,-36,-7,-84,-71,-69,0,0,0,0,0,-56,-30,-94,-26,-30,15,0,154,134,376,364,284,113,-162,70,109,0,0,0,0,-6,0,0,0,0,0,0,0,13,7,-2,-11,-4,-13,-13,0,0,-13,-59,-60,-102,-69,-201,-159,-576,304,-574,-562,-562,-553,-540,-415,-437,-441,-413,-353,-519,-497,-495,-429,-413,-451,-694,-744,-700,-610,-624,-529,-984,-984,-978,-978,-975,-975,-969,-925,-872,-809,-736,-736,-717,-723,-920,-796,-1885,-1861,-6056,-6056]} 1. e4 {[%emt 0:00:27]} c6 {[%emt 0:00:13]} 2. d4 {[%emt 0:00:19]} d5 {[%emt 0:00:10]} 3. e5 {[%emt 0:00:16]} Bf5 {[%emt 0:00:07]} 4. g4 {[%emt 0:04:14]} Bd7 {[%emt 0:00:24]} 5. Nc3 {[%emt 0:00:06]} e6 {[%emt 0:07:19]} 6. Be3 {[%emt 0:00:06] B12: Caro-Kann: Doorschuif Variant.} h5 {[%emt 0:02:56]} 7. gxh5 {[%emt 0:02:59] Onnauwkeurig} Nh6 {[%emt 0:00:11] Fout (1.0)} (7... c5 $1 $11) {Wit zou moeten proberen} 8. Bd3 $2 {[%emt 0:08:18] [#] Fout (1.7)} (8. Bh3 $16) 8... c5 $1 $15 {[%emt 0:01:20] Briljant} 9. dxc5 {[%emt 0:02:17] Onnauwkeurig} (9. Nf3 c4) 9... Nc6 {[%emt 0:00:16] Beste (Gemakkelijk)} 10. Nf3 {[%emt 0:14:52] OK} Ng4 {[%emt 0:06:17][%csl LRe5,LRh5][%cal Og4e3] Beste} 11. Qe2 $146 {[%emt 0:10:13] OK} ({Predecessor:} 11. Bg5 Qa5 12. a3 Bxc5 13. O-O Qb6 14. Qe2 Rxh5 15. h4 Be7 16. Bf4 g6 17. b4 {1-0 Kozak,A (2571)-Mortazavi,A (2333) Titled Tuesday intern op 20th Jun Early blitz 2023 (4)}) 11... Nxe3 {[%emt 0:08:29] Onnauwkeurig} 12. Qxe3 {Fout (0.8)} (12. fxe3 $11 Rxh5 (12... Bxc5 13. Qg2 $11) 13. O-O-O) 12... Qa5 {[%emt 0:00:39][%cal Oe8c8]} 13. O-O-O {[%emt 0:06:14] OK} Bxc5 {[%emt 0:00:49] Fout (0.7)} (13... O-O-O $1 $15 14. Kb1 Rxh5) 14. Qg5 $11 {[%emt 0:02:40] Beste (Gemakkelijk)} Be7 {[%emt 0:07:16] OK} 15. Qxg7 {[%emt 0:09:51] OK} O-O-O {[%emt 0:00:28] Beste (Gemakkelijk)} 16. h6 {[%emt 0:04:34] Fout (0.6)} (16. Qxf7 $2 Rhf8 17. Qg7 Rxf3 $19) (16. Kb1 $11 Rdg8 17. Qxf7) 16... d4 $15 {[%emt 0:06:24] OK} 17. Nb5 {[%emt 0:03:23] blijft gelijk. Fout (0.6)} (17. Ne4 $1 $11 Qxa2 18. h7 (18. Qxf7 Bb4 $17)) 17... Qxa2 {[%emt 0:00:38] Fout (0.7)} (17... Rhg8 $17 18. Qh7 (18. Qxf7 Rgf8 $14) 18... Qxa2) 18. Nd6+ {[%emt 0:01:50]} (18. Nfxd4 Nxd4 19. Nxd4 Qa1+ 20. Kd2 Qxb2 $11) (18. Qxf7 Rhf8 19. Nxa7+ (19. Qh5 $2 Rxf3 20. Nd6+ Bxd6 $19) 19... Kc7 (19... Qxa7 $2 20. Qh5 $19) 20. Nb5+ Kb8 $19) 18... Kb8 {[%emt 0:06:33] Sterke dreiging met ...Rdg8. Onnauwkeurig} 19. Rhg1 {[%emt 0:03:33] OK} (19. Qxf7 $2 Rhf8 20. Rdf1 (20. Qh5 $2 Rxf3 21. Kd2 Qa5+ 22. Kc1 Rxf2 $19) 20... Rxf7 21. Nxf7 Rc8 $19) (19. Nxf7 Bb4 20. Nd2 (20. Nxh8 $2 Qa1#) 20... Bc3 $14 (20... Qa1+ 21. Nb1 $16)) {Zwart zou moeten proberen} 19... f6 $2 {[%emt 0:27:47] [#] Fout (1.5)} 20. Nd2 $1 $16 {[%emt 0:13:33] Nb3 zou dodelijk zijn. Sterk} fxe5 $2 {[%emt 0:01:39] is een betere verdediging. Verliest partij (2.4)} (20... Rxh6 $16 21. Qxh6 Nxe5) 21. Nf7 $18 {[%emt 0:01:29][%csl LRd8,LRe5,LRh8] Beste} Rc8 {[%emt 0:19:39] OK} ({Verwerp} 21... Qa1+ 22. Nb1 $18) 22. Bc4 $2 {[%emt 0:03:36] is dodelijker. Gemiste overwinning (1.7)} (22. Nxh8 $18 Na5 23. Qxe5+ (23. Qxe7 $2 {is een zelfmat.} Qa1+ 24. Nb1 Nb3#) 23... Ka8 24. Rde1 (24. Qxd4 $2 Qa1+ 25. Nb1 Nb3#) 24... Qa1+ 25. Nb1 Nb3+ 26. Kd1 Qxb1+ 27. Ke2 Qxb2 28. Kf3) 22... Qa1+ $16 {[%emt 0:00:07] Beste} 23. Nb1 {[%emt 0:00:04]} Rhf8 {[%emt 0:00:20] Onnauwkeurig} {Wit moet spelen} 24. h7 {[%emt 0:01:15] Fout (1.1)} (24. Nxe5 $16 Nxe5 25. Qxe5+ (25. Qxe7 $2 Nxc4 26. Qb4 a5 $19) 25... Ka8 26. Bd3 (26. Bxe6 $2 Bf6 $19) (26. Qxd4 $2 Bf6 $19)) 24... Nb4 $1 $11 {[%emt 0:00:21] Sterk} 25. Qxe5+ {[%emt 0:00:39]} (25. h8=B $2 Rxc4 26. Qxe5+ Ka8 $19 (26... Kc8 $2 27. c3 $19)) 25... Ka8 {[%emt 0:00:01] Beste (Gemakkelijk)} 26. Rxd4 {[%emt 0:02:32]} (26. h8=Q $2 Rxh8 (26... Rxc4 27. c3 $11) 27. Nxh8 Rxc4 28. Rg8+ Bc8 $19) 26... Nc6 {[%emt 0:01:30] Dansen op een scheermes. Beste (Gemakkelijk)} 27. Qe4 {[%emt 0:01:02] OK} (27. h8=Q $2 {vergaat.} Rxh8 (27... Nxe5 28. Qxe5 Rxf7 29. Rg6 $17) 28. Qxh8 Rxh8 29. Nxh8 Bf6 (29... Nxd4 30. Rg8+) (29... Bg5+ $2 30. Rxg5 Nb8 31. Rg8 $18) 30. Rg8+ Nb8 31. Rxd7 Qxb2+ (31... Bxb2+ 32. Kd2 $15) 32. Kd2 Qb4+ (32... Bxh8 33. Bd3 $15) 33. c3 Qxc4 $19 (33... Qxb1 $2 34. Nf7 $19)) 27... Nxd4 {[%emt 0:00:59] OK} 28. Qxd4 {[%emt 0:00:04]} Rxf7 {[%emt 0:00:25] Beste (Gemakkelijk)} 29. h8=Q {[%emt 0:03:15]} Rxh8 {[%emt 0:00:02] OK} 30. Qxh8+ {[%emt 0:00:05]} Rf8 {[%emt 0:00:01] Beste (Gemakkelijk)} 31. Qg7 {[%emt 0:00:55] [#]} ({Ga niet voor} 31. Rg8 $2 Bg5+ 32. Rxg5 Rxh8 $19) 31... Bd6 {[%emt 0:00:19] En nu zou ...Bf4+ winnen. OK} 32. Rg4 $132 {[%emt 0:01:09][%mdl 2048] Wit is onrustig. OK} Bc8 {[%emt 0:00:56] Een sterk loperpaar. OK} 33. Qd4 {[%emt 0:00:29] Stopt Bf4+. OK} Bxh2 {[%emt 0:00:19]} 34. Qc5 {[%emt 0:00:36] Voorkomt Qa5. OK} Rd8 {[%emt 0:00:31] Hoopt vervolgens op ...e5. OK} 35. Rh4 {[%emt 0:00:28] is het overwegen waard. Fout (0.5)} (35. Qa3 $11 Qxa3 36. Nxa3) 35... Bd6 $15 {[%emt 0:00:21] OK} 36. Qb5 {[%emt 0:00:25] Onnauwkeurig} Be7 {[%emt 0:00:34] Onnauwkeurig} {Beter is} 37. Rh7 {[%emt 0:00:17] Fout (1.3)} (37. Rg4 $1 $15) 37... Bf6 {[%emt 0:00:20]} 38. Rf7 $2 {[%emt 0:00:43] [#] niets anders werkt. Verliest partij (4.2)} (38. Bd3 $17) 38... Bxb2+ $1 {[%emt 0:00:16][%mdl 512]} 39. Qxb2 {[%emt 0:00:17] [#] Gemiste overwinning (8.8)} Rd1+ $3 {[%emt 0:00:05][%mdl 512] Briljant} 40. Kxd1 {[%emt 0:00:01]} Qxb2 {[%emt 0:00:05] OK} 41. Nd2 {[%emt 0:00:15] OK} Qh8 {[%emt 0:00:33][%cal Ob7b5] Wit moet nu ...b5! voorkomen.} 42. Rf4 {[%emt 0:01:24]} a6 {[%emt 0:00:07] OK} 43. Re4 {[%emt 0:00:10]} e5 {[%emt 0:01:46]} 44. Nf3 {[%emt 0:00:11] loont de moeite. Fout (1.7)} (44. Bd3) 44... Qh1+ $19 {[%emt 0:00:10] OK} 45. Ke2 {[%emt 0:00:04] Beste} Bf5 {[%emt 0:01:45]} 46. Rxe5 {[%emt 0:00:01] OK} Bxc2 {[%emt 0:00:11] OK} 47. Ke3 {[%emt 0:00:31] Fout (2.4)} (47. Ne1 $142 Ba4 48. Nd3) 47... Qc1+ {[%emt 0:00:27] OK} 48. Nd2 {[%emt 0:00:51]} Qe1+ {[%emt 0:00:53]} 49. Be2 {[%emt 0:00:02]} Qa1 {[%emt 0:00:18]} 50. Rc5 {[%emt 0:00:56]} Qa3+ {[%emt 0:00:13]} 51. Kd4 {[%emt 0:00:03] Beste} Qb2+ {[%emt 0:00:25]} 52. Ke3 {[%emt 0:00:05]} Qb6 {[%emt 0:00:25]} 53. Kd4 {[%emt 0:01:27]} Qf6+ {[%emt 0:00:06]} 54. Re5 {[%emt 0:00:53]} Qxf2+ {[%emt 0:00:08]} 55. Kc3 {[%emt 0:00:04]} Qf6 {[%emt 0:00:53]} 56. Nc4 {[%emt 0:00:04]} Ba4 {[%emt 0:00:20] Dreigt te winnen met ...b5.} 57. Kb4 {[%emt 0:01:14]} Bb5 {[%emt 0:00:12]} 58. Rc5 {[%emt 0:00:16]} Ka7 {[%emt 0:00:44]} 59. Bd3 {[%emt 0:01:23]} Qe7 {[%emt 0:00:28] Wat een nare droom voor Wit.   Blunder waarde: Wit=0.75/Zwart=0.41.  Verliest partij:   	Wit=1      	Zwart=1      Gemiste overwinning: 	Wit=2      	---        Fout:        	Wit=9      	Zwart=4      Onnauwkeurig:    	Wit=3      	Zwart=4      OK:         	Wit=11     	Zwart=14     Beste:        	Wit=4      	Zwart=8      Sterk:        	Wit=1      	Zwart=1      Briljant:      	---       	Zwart=2} 0-1

[Event "SixDays Budapest GM-B 10-2024"]
[Site "Budapest"]
[Date "2024.10.01"]
[Round "3.3"]
[White "Lee, Junhyeok"]
[Black "Boyer, Mahel"]
[Result "1/2-1/2"]
[Annotator "TA"]
[ECO "B06"]
[WhiteElo "2364"]
[BlackElo "2489"]
[PlyCount "50"]
[EventDate "2024.09.24"]
[EventType "tourn"]
[EventCountry "HUN"]
[SourceTitle "playchess.com"]
[Source "ChessBase"]
[SourceQuality "1"]
[TimeControl "5400+30"]

{[%evp 14,50,45,0,18,-1,18,-20,-27,-12,-12,-34,-44,-36,-50,-50,-10,-8,0,0,0,0,-1,-28,-25,-29,0,0,0,0,0,0,0,0,0,0,0,0,0]} 1. e4 {[%emt 0:00:02]} g6 {[%emt 0:06:22]} 2. d4 {[%emt 0:00:15]} Bg7 {[%emt 0:00:08]} 3. Nf3 {[%emt 0:00:38]} d6 {[%emt 0:00:07][%cal Bd7d6,Bd6d5][%mdl 32]} 4. c3 {[%emt 0:00:22]} Nf6 {[%emt 0:00:33]} 5. Bd3 {[%emt 0:00:06]} O-O {[%emt 0:00:06]} 6. O-O {[%emt 0:00:05]} Nbd7 {[%emt 0:00:28]} 7. h3 {[%emt 0:05:14]} e5 {[%emt 0:00:07]} 8. Be3 {[%emt 0:00:34]} d5 {[%emt 0:09:54]} 9. Nxe5 {[%emt 0:03:20]} dxe4 {[%emt 0:02:31]} 10. Bc2 {[%emt 0:09:34]} Nxe5 $1 {[%emt 0:22:19]} 11. dxe5 {[%emt 0:00:15]} Nd5 {[%emt 0:00:26][%cal Bf6d5,Bd5f4,Bf4h3][%mdl 32]} 12. Bd4 {[%emt 0:04:32][%cal Ob1d2]} Nf4 {[%emt 0:07:57] [#] ...Qg5 would now be deadly.} 13. Bxe4 {[%emt 0:03:22]} Qg5 {[%emt 0:01:06][%csl LRe5,LRh3]} 14. Kh1 $1 {[%emt 0:01:31]} Qh4 {[%emt 0:11:28][%cal Of4h3] Hoping for ...Nxh3!} 15. Nd2 {[%emt 0:06:58] [#]} Bxh3 $1 {[%emt 0:01:27]} 16. gxh3 {[%emt 0:00:41]} Nxh3 {[%emt 0:00:07]} 17. Kg2 {[%emt 0:01:32][%cal Of1h1]} Nf4+ {[%emt 0:00:05]} 18. Kg1 {[%emt 0:00:05][%cal Of1e1]} Qg5+ {[%emt 0:01:25][%mdl 1024] Black has compensation.} 19. Kh1 {[%emt 0:00:31]} Qh4+ {[%emt 0:00:35]} 20. Kg1 {[%emt 0:00:06][%cal Of1e1] aiming for Re1! The position is equal.} c5 {[%emt 0:00:59]} 21. Be3 {[%emt 0:04:25]} Qg5+ {[%emt 0:00:21]} 22. Kh1 {[%emt 0:00:18]} Qh4+ {[%emt 0:00:14]} 23. Kg1 {[%emt 0:00:05] And now Qf3 would win.} Qg5+ {[%emt 0:20:19]} 24. Kh1 {[%emt 0:00:09] Strongly threatening Re1.} Qh4+ {[%emt 0:01:47]} 25. Kg1 {[%emt 0:00:07] Qf3 is the strong threat.} Qg5+ {[%emt 0:00:09] Weighted Error Value: White=0.08 (flawless) /Black=0.07 (flawless) .  Inaccurate:     	White=1     	Black=2      OK:         	White=3     	Black=5      Best:        	White=5     	Black=4      Strong:       	White=1     	Black=1} 1/2-1/2

[Event "SixDays Budapest GM-B 10-2024"]
[Site "Budapest"]
[Date "2024.10.01"]
[Round "3.4"]
[White "Wu, Yixing"]
[Black "Vinter-Schou, Uffe"]
[Result "1-0"]
[Annotator "RC"]
[ECO "A04"]
[WhiteElo "2324"]
[BlackElo "2307"]
[PlyCount "47"]
[EventDate "2024.09.24"]
[EventType "tourn"]
[EventCountry "HUN"]
[SourceTitle "playchess.com"]
[Source "ChessBase"]
[SourceQuality "1"]
[TimeControl "5400+30"]

1. Nf3 {[%emt 0:00:03]} c5 {[%emt 0:00:53]} 2. c4 {[%emt 0:00:06]} g6 {[%emt 0:01:41]} 3. d4 {[%emt 0:00:48]} Bg7 {[%emt 0:00:17]} 4. e4 {[%emt 0:01:54]} Qb6 {[%emt 0:02:00]} 5. dxc5 {[%emt 0:02:45]} Qxc5 {[%emt 0:00:50]} 6. Be2 {[%emt 0:00:51]} Nf6 {[%emt 0:06:25]} 7. Nc3 {[%emt 0:02:22]} Ng4 {[%emt 0:10:01]} 8. O-O {[%emt 0:01:03]} Bxc3 {[%emt 0:00:14]} 9. bxc3 {[%emt 0:00:12]} d6 {[%emt 0:00:28]} 10. Qd4 {[%emt 0:07:50]} O-O {[%emt 0:07:24]} 11. h3 {[%emt 0:00:44]} Ne5 {[%emt 0:12:31]} 12. Nxe5 {[%emt 0:02:50]} Qxe5 {[%emt 0:00:08]} 13. Bh6 {[%emt 0:00:18]} Rd8 {[%emt 0:05:14]} 14. f4 {[%emt 0:00:35]} Qh8 {[%emt 0:00:18]} 15. Rad1 {[%emt 0:02:17]} Nc6 {[%emt 0:01:51]} 16. Qe3 {[%emt 0:01:10]} b6 {[%emt 0:08:46]} 17. e5 {[%emt 0:06:55]} Bb7 {[%emt 0:02:34]} 18. Bf3 {[%emt 0:03:06]} Na5 {[%emt 0:02:38]} 19. Bxb7 {[%emt 0:06:47]} Nxb7 {[%emt 0:00:01]} 20. Rfe1 {[%emt 0:07:06]} Nc5 {[%emt 0:10:38]} 21. exd6 {[%emt 0:04:48]} e6 {[%emt 0:00:10]} 22. f5 {[%emt 0:04:05]} Rd7 {[%emt 0:02:01]} 23. Qf3 {[%emt 0:00:34]} Rdd8 {[%emt 0:13:21]} 24. f6 {[%emt 0:00:09]} 1-0